bitfinex/quotes_ETHUSD_20220202
["timestamp","ask_amount","ask_price","bid_price","bid_amount"]
[1643791888222,0.19437867,2755.6,2755.0,0.99305936]
[1643791888422,1.42275988,2755.5,2755.2,1.088]
[1643791888630,1.42275988,2755.5,2755.4,1.088]
[1643791888822,0.1814,2755.7,2755.4,1.18756085]
[1643791889023,0.1814,2755.9,2755.6,1.088]
[1643791889223,1.42211329,2755.8,2755.6,1.088]
[1643791889632,1.42981311,2756.5,2755.6,1.088]
[1643791889633,0.1814,2756.4,2755.7,1.61096083]
[1643791889829,0.1814,2756.4,2756.3,1.8573599]
[1643791890128,0.1812,2756.5,2756.3,1.8573599]
[1643791890426,2.57623275,2756.6,2756.3,2.1573599]
[1643791890427,1.47341225,2756.4,2756.3,2.1573599]
[1643791890678,1.47341225,2756.4,2756.3,1.088]
[1643791890871,1.47341225,2756.5,2756.3,1.088]
[1643791891074,1.1028205,2756.6,2756.3,1.088]
[1643791891272,1.47150981,2756.5,2756.3,1.088]
[1643791891871,1.77150981,2756.5,2756.3,1.088]
[1643791892078,0.3,2756.5,2756.3,1.088]
[1643791892276,1.1028205,2756.6,2756.3,1.088]
[1643791892277,1.4028205,2756.6,2756.3,1.088]
[1643791892675,1.47031285,2756.5,2756.3,1.088]
[1643791893284,1.47031285,2756.5,2756.3,1.08700773]
[1643791893684,1.1028205,2756.6,2756.3,1.08700773]
[1643791895514,1.1028205,2756.6,2756.3,1.38700773]
[1643791895718,1.1028205,2756.6,2756.3,1.08700773]
[1643791896718,1.1028205,2756.6,2756.3,1.38700773]
[1643791898368,1.1028205,2756.6,2756.5,1.8712459]
[1643791898573,1.1028205,2756.6,2756.5,2.1712459]
[1643791898768,0.9579089,2756.6,2756.5,2.1712459]
[1643791899168,0.31939997,2757.3,2756.7,1.08700773]
[1643791899169,0.1812,2757.3,2756.7,1.08700773]
[1643791899369,1.14439367,2757.9,2756.7,1.08700773]
[1643791899370,0.1812,2757.7,2756.8,1.50533277]
[1643791899567,0.1812,2757.8,2757.5,2.01436177]
[1643791899775,0.1812,2757.8,2757.6,1.08700773]
[1643791899970,2.0,2758.4,2757.6,1.08700773]
[1643791899971,0.1812,2758.2,2757.6,1.08700773]
[1643791900167,0.20495,2758.7,2757.6,1.08700773]
[1643791900168,0.1812,2758.3,2757.6,1.08700773]
[1643791900378,0.1812,2758.5,2757.6,1.08700773]
[1643791900566,0.1812,2758.5,2758.3,1.08700773]
[1643791900567,1.41175796,2758.4,2758.3,1.08700773]
[1643791900975,1.59295796,2758.5,2758.3,1.08700773]
[1643791901176,1.41175796,2758.4,2758.3,1.08700773]
[1643791901370,0.1812,2758.4,2758.3,1.08700773]
[1643791901568,1.59124193,2758.6,2758.3,1.08700773]
[1643791901769,1.41002779,2758.5,2758.3,1.08700773]
[1643791902020,4.2312,2758.4,2758.3,1.08700773]
[1643791902222,1.59122779,2758.4,2758.3,1.08700773]
[1643791902420,1.41002779,2758.4,2758.3,1.08700773]
[1643791902622,4.51002779,2758.4,2758.3,1.08700773]
[1643791903021,4.81002779,2758.4,2758.3,1.08700773]
[1643791903224,7.84076663,2758.4,2758.3,1.08700773]
[1643791903423,9.36376663,2758.4,2758.3,1.08700773]
[1643791903627,9.54496663,2758.4,2758.3,1.08700773]
[1643791903927,7.53390024,2758.4,2758.3,1.08700773]
[1643791904122,6.71917779,2758.4,2758.3,1.08700773]
[1643791904323,7.0871607,2758.4,2758.3,1.08700773]
[1643791905123,5.5,2758.3,2757.2,2.11285]
[1643791905322,0.88919262,2758.2,2757.4,0.92070395]
[1643791905523,0.42215655,2757.9,2757.4,0.92070395]
[1643791905774,0.20495,2758.2,2757.4,1.22070395]
[1643791907378,0.20495,2758.2,2757.4,0.3]
[1643791907579,0.20495,2758.2,2757.3,0.33956055]
[1643791907580,0.72795,2758.2,2757.3,0.33956055]
[1643791907778,0.72795,2758.2,2756.8,3.62611]
[1643791907779,1.33086937,2758.2,2756.8,3.62611]
[1643791907982,1.38730973,2758.1,2756.8,0.3]
[1643791908180,0.20495,2757.9,2756.8,0.3]
[1643791908379,0.7168591,2757.8,2756.7,0.25]
[1643791908581,1.79358129,2757.8,2757.0,0.82461753]
[1643791908781,1.0168591,2757.8,2757.2,0.43695553]
[1643791909817,1.46089569,2757.8,2757.2,0.43695553]
[1643791910117,1.27969569,2757.8,2757.2,0.43695553]
[1643791910318,1.27969569,2757.8,2757.1,0.3]
[1643791910520,1.27969569,2757.8,2756.6,6.7913]
[1643791910720,1.46089569,2757.8,2756.6,7.0913]
[1643791910919,1.46089569,2757.8,2756.6,3.3657]
[1643791911118,1.46089569,2757.8,2756.3,1.1927]
[1643791911119,1.38626237,2757.7,2756.3,1.1927]
[1643791911319,0.7042,2757.6,2756.3,1.1927]
[1643791911517,0.7042,2757.6,2756.7,1.14227997]
[1643791911518,0.32814188,2757.3,2756.7,1.14227997]
[1643791911918,0.62814188,2757.3,2756.7,0.80390566]
[1643791912121,0.523,2757.2,2756.7,0.80390566]
[1643791913271,0.523,2757.2,2756.7,1.23361449]
[1643791913772,0.523,2757.2,2756.7,0.80390566]
[1643791915173,0.523,2757.2,2756.9,0.34228657]
[1643791917018,1.56015404,2757.7,2756.9,0.34228657]
[1643791917219,1.86015404,2757.7,2756.9,0.34228657]
[1643791917618,0.86015404,2757.7,2756.9,0.34228657]
[1643791918421,0.86015404,2757.7,2757.3,0.84593457]
[1643791918922,0.67280646,2757.6,2756.9,1.28291771]
[1643791919120,0.67280646,2757.6,2756.9,1.58291771]
[1643791920123,0.56015404,2757.7,2757.4,0.37361439]
[1643791920326,0.1812,2757.7,2757.4,0.37361439]
[1643791920524,4.7851,2758.2,2757.4,0.37361439]
[1643791920525,0.1812,2757.8,2757.4,0.37361439]
[1643791920770,0.1812,2758.1,2757.4,0.37361439]
[1643791920967,1.39227447,2758.0,2757.4,0.37361439]
[1643791921171,0.1812,2758.1,2757.7,0.88480729]
[1643791921369,0.1812,2758.2,2757.7,0.88480729]
[1643791921569,0.4812,2758.3,2757.7,0.88480729]
[1643791921874,1.39305379,2758.2,2757.7,0.88480729]
[1643791922572,0.32121884,2758.1,2757.4,0.37361439]
[1643791922775,0.62121884,2758.1,2757.4,0.37361439]
[1643791923574,0.62121884,2758.1,2757.5,0.72429915]
[1643791925418,1.37310316,2758.0,2757.5,0.72429915]
[1643791930578,1.37310316,2758.0,2757.4,0.37361439]
[1643791931677,1.37310316,2758.0,2757.5,0.88828508]
[1643791931921,1.87046061,2758.3,2757.5,0.88828508]
[1643791931922,1.37310316,2757.9,2757.5,0.88828508]
[1643791932134,1.87046061,2758.3,2757.5,0.88828508]
[1643791932135,1.37310316,2757.8,2757.5,0.88828508]
[1643791932426,1.37310316,2757.7,2757.5,0.88828508]
[1643791932624,1.37310316,2757.6,2757.5,0.88828508]
[1643791933225,1.37310316,2757.6,2757.5,1.18828508]
[1643791933426,0.1812,2758.3,2757.5,1.32715724]
[1643791933627,1.38303866,2758.2,2757.5,1.18828508]
[1643791933828,1.38303866,2758.1,2757.6,0.13880616]
[1643791934034,1.38303866,2758.0,2757.9,0.34154338]
[1643791934227,0.95284833,2758.8,2758.4,0.39419598]
[1643791934426,1.38428361,2758.7,2758.4,0.39419598]
[1643791934631,1.38428361,2758.7,2758.3,0.67178571]
[1643791934827,1.38428361,2758.7,2757.7,1.1311]
[1643791935026,2.07354422,2758.7,2757.8,0.13907757]
[1643791935226,2.07354422,2758.7,2757.7,1.4311]
[1643791935227,2.07354422,2758.6,2757.7,1.4311]
[1643791935427,1.38428361,2758.5,2757.7,1.4311]
[1643791935871,3.27189828,2758.5,2757.8,0.36563838]
[1643791936073,1.38428361,2758.4,2757.8,0.36563838]
[1643791936470,1.38428361,2758.3,2757.8,0.36563838]
[1643791936670,1.38428361,2758.2,2757.8,0.36563838]
[1643791936871,1.38428361,2758.1,2757.8,0.36563838]
[1643791937076,1.38428361,2758.0,2757.8,0.36563838]
[1643791937280,1.38428361,2757.9,2757.8,0.36563838]
[1643791937875,0.4077563,2758.4,2757.8,0.50485317]
[1643791937876,1.38428361,2758.3,2757.8,0.50485317]
[1643791938075,1.38381225,2758.2,2757.8,0.36563838]
[1643791938476,1.38381225,2758.1,2757.8,2.33443713]
[1643791938680,1.38381225,2758.6,2757.9,0.95835385]
[1643791938877,1.38419437,2758.5,2758.0,0.3]
[1643791939076,1.38419437,2758.4,2758.0,0.3]
[1643791939277,1.38419437,2758.3,2758.0,0.3]
[1643791939520,0.1812,2758.7,2757.9,0.57397378]
[1643791939521,1.38419437,2758.2,2757.9,0.57397378]
[1643791939721,1.38419437,2758.1,2757.9,0.57397378]
[1643791939926,1.38419437,2758.0,2757.9,0.57397378]
[1643791940120,1.38419437,2758.0,2757.9,0.7129233]
[1643791940322,1.38419437,2758.0,2757.8,0.36563838]
[1643791940323,1.38419437,2758.0,2757.6,1.0]
[1643791940523,0.36112059,2758.3,2757.7,0.3]
[1643791940820,0.36112059,2758.3,2757.5,0.18127]
[1643791940821,0.36112059,2758.3,2757.5,0.48127]
[1643791941021,0.36112059,2758.3,2757.6,1.98006254]
[1643791941222,0.68926061,2758.6,2757.5,0.18127]
[1643791941423,0.68926061,2758.6,2758.1,0.75220922]
[1643791942227,1.07896115,2758.6,2758.1,1.14277845]
[1643791942729,1.07896115,2758.6,2758.1,0.75220922]
[1643791943571,0.1812,2758.7,2758.1,0.75220922]
[1643791943572,0.87046061,2758.7,2758.1,0.75220922]
[1643791944376,0.1812,2758.7,2758.1,0.75220922]
[1643791944577,0.34836683,2758.5,2758.1,0.75220922]
[1643791944776,0.34836683,2758.5,2757.6,1.1614]
[1643791945775,0.34836683,2758.5,2757.6,1.4614]
[1643791945976,0.34836683,2758.5,2757.7,0.39807054]
[1643791946577,0.34836683,2758.5,2757.9,0.79279868]
[1643791947233,0.87046061,2758.7,2757.9,0.79279868]
[1643791947432,0.77164833,2758.8,2757.9,0.79279868]
[1643791947433,1.64210894,2758.8,2757.9,0.79279868]
[1643791947638,0.87046061,2758.8,2757.9,0.79279868]
[1643791948235,0.32604353,2758.6,2757.9,0.79279868]
[1643791948635,0.87046061,2758.8,2758.0,1.97484276]
[1643791948936,0.1812,2758.8,2758.0,0.3]
[1643791949134,0.1812,2758.8,2757.8,2.18288518]
[1643791949135,0.88257368,2758.9,2757.8,2.18288518]
[1643791949343,0.68926061,2758.6,2757.7,0.39807054]
[1643791949536,1.10872048,2758.9,2757.7,2.36847672]
[1643791949537,0.68926061,2758.8,2757.7,2.36847672]
[1643791949736,0.42630599,2758.5,2757.7,2.36847672]
[1643791950037,0.42630599,2758.5,2757.7,2.40522475]
[1643791950236,0.42630599,2758.5,2758.0,0.71144251]
[1643791950885,0.68926061,2758.8,2758.0,0.71144251]
[1643791951085,0.1812,2758.7,2758.0,1.01144251]
[1643791951494,0.1812,2758.7,2758.1,1.96212995]
[1643791951792,3.95436197,2759.3,2758.9,0.74880042]
[1643791951793,0.1812,2759.0,2758.9,0.74880042]
[1643791951995,4.07170103,2759.8,2758.9,1.07734822]
[1643791951996,1.28439629,2759.5,2758.9,1.07734822]
[1643791952394,0.87046061,2759.5,2758.9,1.07734822]
[1643791952596,0.87046061,2759.5,2759.0,1.97226386]
[1643791952798,0.91540741,2759.8,2759.0,1.98682658]
[1643791952799,0.1812,2759.7,2759.0,1.98682658]
[1643791952998,0.1812,2759.7,2759.0,2.07063507]
[1643791953295,0.1812,2759.7,2759.4,0.80043526]
[1643791953502,0.40638423,2759.7,2758.9,2.1470478]
[1643791953697,0.1812,2759.6,2759.0,2.01569328]
[1643791954094,1.79208111,2759.9,2759.0,2.18225619]
[1643791954095,0.1812,2759.8,2759.0,2.18225619]
[1643791954296,0.1812,2759.8,2759.0,4.08812619]
[1643791955139,0.1812,2759.8,2759.4,0.81699812]
[1643791955337,1.51553931,2759.9,2759.1,1.0]
[1643791955548,1.51553931,2759.9,2759.4,0.3951341]
[1643791955549,1.1028205,2759.9,2759.4,0.3951341]
[1643791956141,1.1028205,2759.9,2759.4,0.6951341]
[1643791956337,1.08564924,2759.9,2759.4,0.6951341]
[1643791956539,1.08564924,2759.9,2759.5,0.94783465]
[1643791956940,1.08564924,2759.9,2759.5,2.15348375]
[1643791957240,1.08564924,2759.9,2759.5,4.05911375]
[1643791957543,0.38124843,2761.1,2759.8,6.75]
[1643791957748,0.21718567,2761.3,2760.0,1.0]
[1643791957749,0.1811,2761.3,2760.0,1.0]
[1643791957946,5.49659079,2762.2,2760.7,0.02122464]
[1643791957947,0.1811,2761.8,2760.7,0.02122464]
[1643791958191,0.1809,2762.1,2760.7,0.54422464]
[1643791958383,0.1809,2762.1,2760.9,0.01651771]
[1643791958585,0.04035807,2762.2,2760.9,0.3]
[1643791958785,0.04035807,2762.2,2761.0,2.19580928]
[1643791958786,0.1809,2762.1,2761.0,2.19580928]
[1643791958988,0.1809,2762.1,2761.1,0.18127]
[1643791959186,0.1809,2762.2,2761.3,0.90505]
[1643791959390,0.04092649,2762.3,2761.3,0.91752185]
[1643791959588,0.04092649,2762.3,2761.4,0.3]
[1643791959792,0.144954,2762.7,2761.5,8.75]
[1643791959993,0.181,2762.9,2762.1,0.01229913]
[1643791960192,1.1028205,2763.2,2762.2,1.2669]
[1643791960389,1.1028205,2763.2,2762.3,3.85189644]
[1643791960588,1.1028205,2763.2,2762.4,0.58201114]
[1643791960792,1.1028205,2763.2,2762.4,1.88201114]
[1643791960987,1.1028205,2763.2,2762.5,0.18127]
[1643791961188,1.1028205,2763.2,2762.6,0.1808]
[1643791961387,1.1028205,2763.2,2762.7,0.72139874]
[1643791961588,1.1028205,2763.2,2762.7,1.02139874]
[1643791962022,1.1028205,2763.2,2762.8,0.41367112]
[1643791962226,1.1028205,2763.2,2762.5,0.1807]
[1643791962227,1.0528205,2763.2,2762.5,0.1807]
[1643791962425,1.0528205,2763.2,2761.9,0.1807]
[1643791963024,1.3528205,2763.2,2761.9,0.1807]
[1643791963428,0.81870249,2763.1,2762.7,0.41780633]
[1643791963623,0.1809,2763.1,2762.7,0.41780633]
[1643791964624,0.1809,2763.1,2763.0,0.86441531]
[1643791964825,0.1809,2763.1,2762.8,0.88174108]
[1643791965226,0.1809,2763.1,2761.9,2.34086649]
[1643791965227,1.38584999,2763.1,2761.9,0.1809]
[1643791965426,0.68585,2763.1,2761.9,0.1809]
[1643791965671,0.38585,2763.1,2761.9,0.1809]
[1643791965874,0.38585,2763.1,2761.9,2.43245753]
[1643791965875,0.1809,2763.1,2761.9,2.43245753]
[1643791966267,0.1809,2763.1,2762.8,0.90915879]
[1643791966670,0.1809,2763.1,2762.1,0.18127]
[1643791966871,0.1809,2763.1,2761.9,0.36217]
[1643791967075,0.1809,2763.1,2761.9,1.36217]
[1643791967277,0.1809,2763.1,2762.8,0.40168125]
[1643791969918,1.0528205,2763.2,2762.8,0.40168125]
[1643791970920,1.0528205,2763.2,2762.8,2.42051955]
[1643791971328,1.0528205,2763.2,2762.8,0.40168125]
[1643791972325,1.0528205,2763.2,2762.8,2.44529998]
[1643791972528,1.0528205,2763.2,2762.8,0.40168125]
[1643791972729,2.05e-05,2763.2,2762.8,3.40168125]
[1643791972925,2.05e-05,2763.2,2762.8,0.40168125]
[1643791973179,2.05e-05,2763.2,2762.9,1.18127]
[1643791973373,2.05e-05,2763.2,2763.1,3.93127]
[1643791973576,2.05e-05,2763.2,2763.1,2.36217]
[1643791973778,2.05e-05,2763.2,2763.1,7.21217]
[1643791973981,2.05e-05,2763.2,2763.1,4.21217]
[1643791974176,2.05e-05,2763.2,2763.1,5.21217]
[1643791974376,2.05e-05,2763.2,2763.1,10.18196171]
[1643791974576,2.05e-05,2763.2,2763.1,8.18196171]
[1643791974775,2.05e-05,2763.2,2763.1,1.66217]
[1643791974976,2.05e-05,2763.2,2763.1,0.1809]
[1643791975581,2.05e-05,2763.2,2763.1,0.36217]
[1643791975975,2.05e-05,2763.2,2763.1,0.1809]
[1643791977624,2.05e-05,2763.2,2763.1,0.36217]
[1643791977826,2.05e-05,2763.2,2763.1,6.11217]
[1643791978023,2.05e-05,2763.2,2763.1,5.81217]
[1643791978226,2.05e-05,2763.2,2763.1,0.36217]
[1643791978426,2.05e-05,2763.2,2762.8,0.1809]
[1643791980124,2.05e-05,2763.2,2762.9,0.18127]
[1643791980327,2.05e-05,2763.2,2763.1,6.93127]
[1643791980779,2.05e-05,2763.2,2763.1,10.34652974]
[1643791980978,2.05e-05,2763.2,2763.1,1.48127]
[1643791981178,0.52790405,2764.2,2763.2,4.35]
[1643791981382,0.52790405,2764.2,2763.6,0.37035339]
[1643791981578,0.82790405,2764.2,2763.6,0.37035339]
[1643791981787,0.82790405,2764.2,2763.1,0.3]
[1643791981982,0.82790405,2764.2,2763.0,1.3]
[1643791982180,0.82790405,2764.2,2763.4,0.90993414]
[1643791982381,0.1809,2764.2,2763.9,0.70494912]
[1643791982588,0.13819997,2764.9,2763.9,0.70494912]
[1643791982589,0.1807,2764.5,2763.9,0.70494912]
[1643791982787,0.1807,2764.8,2763.9,0.70494912]
[1643791982984,0.19336251,2764.8,2763.9,0.70494912]
[1643791983282,0.19336251,2764.8,2763.5,3.0635]
[1643791983283,0.4228472,2764.2,2763.7,0.31743791]
[1643791983483,0.1809,2764.1,2763.7,0.31743791]
[1643791983682,0.3,2764.2,2763.7,0.31743791]
[1643791983882,0.1809,2764.1,2763.7,0.31743791]
[1643791984083,0.1809,2764.5,2763.5,3.0635]
[1643791984287,0.86184547,2764.2,2763.6,0.82353215]
[1643791984519,0.3,2764.2,2763.6,0.82353215]
[1643791984918,0.1809,2764.3,2763.6,0.82353215]
[1643791985121,0.1809,2764.3,2763.8,0.35092498]
[1643791985122,0.7039,2764.3,2763.8,0.35092498]
[1643791985318,0.7039,2764.3,2763.6,0.82353215]
[1643791985521,1.60964433,2764.3,2763.6,0.82353215]
[1643791986119,0.7039,2764.3,2763.6,0.82353215]
[1643791987425,1.51327551,2764.3,2763.6,1.23829996]
[1643791987827,1.51327551,2764.3,2763.1,0.1807]
[1643791987828,0.99999999,2764.0,2763.1,0.1807]
[1643791988029,2.95344679,2763.9,2762.6,0.4309]
[1643791988272,3.43434679,2763.9,2762.6,0.4309]
[1643791988473,1.0,2763.8,2762.6,0.4309]
[1643791988776,1.0,2763.8,2762.9,0.75331019]
[1643791988777,0.8247741,2763.4,2762.9,0.75331019]
[1643791988983,2.03541416,2763.5,2762.9,0.75331019]
[1643791989374,2.0039,2763.6,2762.9,0.75331019]
[1643791989679,1.0039,2763.6,2762.9,0.75331019]
[1643791990075,2.9157541,2763.6,2762.9,0.75331019]
[1643791990473,2.7348541,2763.6,2762.9,0.75331019]
[1643791990674,2.4348541,2763.6,2763.1,0.33614638]
[1643791990876,0.823,2763.6,2762.9,0.75331019]
[1643791991078,1.92950441,2763.5,2762.9,0.75331019]
[1643791991926,2.24472546,2763.5,2762.9,0.75331019]
[1643791992135,1.99472546,2763.5,2762.9,0.75331019]
[1643791993234,0.523,2763.4,2762.9,1.1589198]
[1643791994839,0.823,2763.4,2762.9,1.1589198]
[1643791995136,2.11872909,2763.8,2762.9,1.1589198]
[1643791995137,1.1809,2763.7,2762.9,1.1589198]
[1643791995336,0.3,2763.7,2762.9,1.1589198]
[1643791995533,0.20495,2763.9,2762.9,1.1589198]
[1643791995786,0.50495,2763.9,2762.9,1.1589198]
[1643791995983,3.193515,2763.8,2763.4,0.91035651]
[1643791996183,3.193515,2763.8,2762.7,0.1809]
[1643791996184,1.92525174,2763.8,2762.7,0.1809]
[1643791996987,0.1809,2763.9,2762.7,0.1809]
[1643791997186,1.26877514,2763.8,2762.7,0.1809]
[1643791997393,0.44282161,2763.6,2763.1,0.75626621]
[1643791997788,0.44282161,2763.6,2762.7,0.1809]
[1643791997989,0.74282161,2763.6,2762.6,0.4309]
[1643791998590,3.69834649,2763.5,2762.5,0.4809]
[1643791998789,3.69834649,2763.5,2762.2,0.1809]
[1643791998790,0.34500146,2762.7,2762.2,0.1809]
[1643791998995,1.92140468,2762.6,2762.2,0.1809]
[1643791999197,0.34500146,2762.7,2761.9,0.1809]
[1643791999198,0.86800146,2762.7,2761.9,0.1809]
[1643791999429,0.3,2762.6,2761.9,0.1809]
[1643791999828,1.16800146,2762.7,2762.3,0.91771513]
[1643792000036,0.823,2762.7,2762.3,0.91771513]
[1643792000830,0.523,2762.7,2762.3,0.91771513]
[1643792001028,2.53172559,2763.1,2762.6,0.3383565]
[1643792001230,2.53172559,2763.1,2762.3,0.68535039]
[1643792001231,1.45657403,2763.0,2762.3,0.68535039]
[1643792001429,0.7039,2763.1,2762.3,0.68535039]
[1643792001630,1.26489389,2763.0,2762.3,0.68535039]
[1643792002034,0.7039,2763.4,2762.8,0.67329929]
[1643792002035,2.1394416,2763.3,2762.8,0.67329929]
[1643792002234,1.26489389,2763.2,2762.8,0.67329929]
[1643792002437,0.00272625,2763.8,2762.8,0.67329929]
[1643792002438,0.1809,2763.7,2762.8,0.67329929]
[1643792002641,0.00272625,2763.8,2762.9,0.1809]
[1643792002642,1.2674267,2763.6,2762.9,0.1809]
[1643792002834,0.00272625,2763.8,2762.9,0.1809]
[1643792002835,1.2674267,2763.5,2762.9,0.1809]
[1643792003184,1.2674267,2763.4,2762.9,0.1809]
[1643792003387,0.67709124,2763.8,2763.6,0.88231483]
[1643792003688,1.26933617,2763.7,2763.6,0.88231483]
[1643792003885,0.67709124,2763.8,2763.6,0.88231483]
[1643792004086,0.67709124,2763.8,2762.9,0.1809]
[1643792004287,2.63628686,2763.8,2762.9,0.1809]
[1643792004488,1.26933617,2763.7,2762.8,0.1809]
[1643792004686,1.95945945,2763.6,2762.8,0.1809]
[1643792004886,1.94642741,2763.5,2762.7,3.694]
[1643792005086,1.3364783,2763.4,2762.8,1.04120603]
[1643792005293,1.26933617,2763.3,2762.8,1.04120603]
[1643792005485,1.26933617,2763.3,2762.8,0.72475592]
[1643792006585,1.26933617,2763.3,2762.8,1.13557268]
[1643792006936,3.2186003,2763.3,2762.8,0.41081676]
[1643792007131,1.26933617,2763.2,2762.8,0.41081676]
[1643792007528,1.26933617,2763.2,2762.5,0.1809]
[1643792007734,1.26933617,2763.1,2762.6,0.24052851]
[1643792007934,1.26933617,2763.0,2762.9,0.67917884]
[1643792008128,1.26933617,2763.3,2762.9,0.67917884]
[1643792008731,3.27352444,2763.3,2762.4,0.1809]
[1643792008932,1.26933617,2763.2,2762.5,0.24070607]
[1643792009531,1.26933617,2763.1,2762.5,0.24070607]
[1643792009731,1.26933617,2763.3,2762.8,0.93288234]
[1643792009931,1.26933617,2763.2,2762.8,0.93288234]
[1643792010131,1.26933617,2763.1,2762.4,0.1809]
[1643792010335,3.1927428,2763.0,2762.5,0.24091983]
[1643792010538,3.1927428,2763.0,2762.0,0.4309]
[1643792010539,1.26933617,2762.9,2762.0,0.4309]
[1643792010775,1.26933617,2762.9,2762.1,0.2410459]
[1643792010776,2.05412991,2762.8,2762.1,0.2410459]
[1643792011080,0.76998695,2762.6,2762.1,0.9962573]
[1643792011280,0.76998695,2762.6,2762.1,0.7552114]
[1643792011281,3.57474575,2762.5,2762.1,0.7552114]
[1643792011477,1.26933617,2762.4,2761.5,3.8122]
[1643792011679,2.32258064,2762.3,2761.6,0.24106948]
[1643792011875,1.26933617,2762.2,2761.6,0.24106948]
[1643792012080,1.70163129,2762.2,2761.6,0.24106948]
[1643792012278,1.26933617,2762.1,2761.6,0.24106948]
[1643792012581,1.26933617,2762.1,2761.9,0.89500912]
[1643792013979,1.26933617,2762.0,2761.9,0.89500912]
[1643792014420,1.26933617,2762.2,2761.9,0.89500912]
[1643792014621,1.26933617,2762.1,2761.9,0.89500912]
[1643792014821,1.26933617,2762.0,2761.9,0.89500912]
[1643792015024,1.26933617,2762.2,2761.9,0.89500912]
[1643792015527,1.26933617,2762.2,2761.7,0.33092459]
[1643792015729,1.26933617,2762.2,2761.3,0.1809]
[1643792015730,1.93389057,2762.1,2761.8,0.24096103]
[1643792015923,1.93389057,2762.1,2761.3,0.1809]
[1643792015924,1.26933617,2762.0,2761.3,0.1809]
[1643792016125,1.96635367,2761.9,2761.4,0.23819072]
[1643792016323,1.96635367,2761.9,2761.2,0.1809]
[1643792016324,1.26933617,2762.0,2761.3,0.23819072]
[1643792016525,2.69237719,2761.9,2761.4,0.72295212]
[1643792016829,0.32717272,2761.7,2761.5,0.23819072]
[1643792017029,0.32717272,2761.7,2761.2,0.1809]
[1643792017030,1.92442984,2761.6,2761.3,0.23819072]
[1643792017228,1.92442984,2761.6,2761.4,0.23830068]
[1643792017229,1.93241167,2761.6,2761.4,0.23830068]
[1643792017429,1.93241167,2761.6,2761.2,0.1809]
[1643792017430,1.28116479,2761.5,2761.2,0.1809]
[1643792017629,2.21157167,2761.4,2761.2,0.1809]
[1643792017830,0.76319692,2761.1,2760.7,0.25]
[1643792018036,0.44266303,2760.8,2760.1,0.1809]
[1643792018287,0.44266303,2760.8,2760.2,0.23841745]
[1643792018482,0.44266303,2760.8,2760.1,0.23841745]
[1643792018683,2.33228243,2761.0,2760.1,0.23841745]
[1643792018880,0.1811,2761.0,2760.1,0.23841745]
[1643792019080,0.1811,2761.0,2760.1,1.14395745]
[1643792019283,0.1811,2761.3,2760.2,0.53841745]
[1643792019482,0.1811,2761.3,2760.3,0.23841745]
[1643792019685,0.39560798,2761.2,2760.7,0.33629656]
[1643792019882,0.7001391,2761.1,2760.6,0.67531349]
[1643792020182,0.39560798,2761.2,2760.7,0.23709008]
[1643792020383,1.1811,2761.3,2760.7,0.23709008]
[1643792020684,0.1811,2761.3,2760.7,0.23709008]
[1643792020885,0.1811,2761.3,2760.0,0.1811]
[1643792021093,0.1811,2761.3,2760.1,0.22040789]
[1643792021284,0.37330873,2761.0,2760.5,0.32525201]
[1643792021486,0.37226237,2761.0,2760.5,0.32525201]
[1643792021936,1.10660905,2761.3,2760.8,0.70282276]
[1643792022345,0.1811,2761.3,2760.8,0.70282276]
[1643792022544,4.73545,2761.8,2760.9,0.22027205]
[1643792022545,0.1809,2761.7,2760.9,0.22027205]
[1643792022943,0.58681984,2761.7,2761.1,0.41185148]
[1643792023144,0.40591984,2761.7,2761.1,0.41185148]
[1643792023343,0.40591984,2761.7,2761.3,0.75397947]
[1643792023844,0.40591984,2761.7,2760.6,0.1809]
[1643792024045,2.34386509,2761.7,2760.7,0.21855463]
[1643792024244,3.34386509,2761.7,2760.7,0.21855463]
[1643792024645,1.40591984,2761.7,2760.7,0.21855463]
[1643792024844,0.40591984,2761.7,2761.1,1.18330282]
[1643792026277,0.40591984,2761.7,2761.1,0.7703886]
[1643792027483,0.40591984,2761.7,2761.1,1.1459485]
[1643792028889,0.40591984,2761.7,2761.1,0.7703886]
[1643792029925,0.40591984,2761.7,2761.1,1.15193198]
[1643792030123,0.40591984,2761.7,2761.1,0.7703886]
[1643792031026,0.40591984,2761.7,2760.6,1.08629]
[1643792031228,0.40591984,2761.7,2760.8,0.40758256]
[1643792031423,0.40591984,2761.7,2760.9,0.21790633]
[1643792032330,0.40591984,2761.7,2761.1,0.79544942]
[1643792032931,0.38392828,2761.2,2760.6,1.38629]
[1643792033181,0.38392828,2761.2,2760.7,0.2181354]
[1643792033380,0.38392828,2761.2,2760.6,0.4809]
[1643792033792,0.38392828,2761.2,2760.6,0.1809]
[1643792033981,0.92236148,2761.0,2760.6,0.1809]
[1643792034179,0.92236148,2761.0,2760.5,0.88357661]
[1643792034382,0.92236148,2761.0,2760.4,0.1811]
[1643792034680,0.92236148,2761.0,2760.5,0.21839513]
[1643792035479,0.92236148,2761.0,2760.5,1.12390502]
[1643792035680,0.92236148,2761.0,2760.5,0.90550989]
[1643792035880,0.92236148,2761.0,2760.4,0.1811]
[1643792036280,0.92236148,2761.0,2760.3,0.40316681]
[1643792036489,0.92236148,2761.0,2760.4,0.21835378]
[1643792037135,0.92236148,2761.0,2760.6,0.87114172]
[1643792039432,0.92236148,2761.0,2760.3,0.40316681]
[1643792039631,0.92236148,2761.0,2760.4,0.21787351]
[1643792040436,0.38392828,2761.2,2760.8,0.33013019]
[1643792040678,0.38392828,2761.2,2760.5,0.1809]
[1643792040884,0.38392828,2761.2,2760.6,0.21778]
[1643792041076,0.38392828,2761.2,2760.4,1.08655]
[1643792041279,0.38392828,2761.2,2760.5,0.21782406]
[1643792041475,0.38392828,2761.2,2760.7,0.85309039]
[1643792041879,0.38392828,2761.2,2760.8,0.21798921]
[1643792042080,0.38392828,2761.2,2760.4,0.1811]
[1643792042282,0.68392828,2761.2,2760.5,0.21808479]
[1643792042682,0.3849723,2760.7,2760.4,0.1811]
[1643792042881,0.3849723,2760.7,2760.5,0.2180444]
[1643792046331,0.3849723,2760.7,2760.0,0.1811]
[1643792046533,0.38378975,2760.7,2760.1,0.2183624]
[1643792046935,0.38378975,2760.7,2760.0,0.2183624]
[1643792047331,0.38378975,2760.7,2760.1,0.90204733]
[1643792047531,0.38378975,2760.7,2760.2,0.2183624]
[1643792051785,0.68378975,2760.7,2760.3,0.2183624]
[1643792052043,0.68378975,2760.7,2759.9,3.1705]
[1643792052230,0.68378975,2760.7,2760.0,0.21881406]
[1643792052432,0.43922646,2760.2,2760.0,1.15318555]
[1643792052630,0.3,2760.7,2760.1,0.21881406]